[Event "Polish Youth Ekstraliga 2022"]
[Site "Lublin"]
[Date "2022.06.27"]
[Round "3.1"]
[White "Poltorak, Sebastian"]
[Black "Czopor, Maciej"]
[Result "0-1"]
[ECO "D35"]
[WhiteElo "2322"]
[BlackElo "2425"]
[Annotator "TA"]
[PlyCount "120"]
[EventDate "2022.06.24"]
[EventType "team-tourn"]
[EventCountry "POL"]
[SourceTitle "playchess.com"]
[Source "ChessBase"]
[SourceQuality "1"]
[TimeControl "40/5400+30:1800+30"]

{[%evp 13,120,20,17,14,12,15,15,14,23,18,19,21,21,14,20,13,24,18,22,-16,-16,-16,-16,-16,-16,-16,-16,-62,-61,-64,-54,-85,-58,-111,-121,-112,-110,-118,-111,-111,-111,-111,-111,-111,-103,-111,-111,-111,-111,-111,-111,-126,-111,-111,-111,-111,-111,-111,-111,-111,-111,-111,-111,-111,-106,-193,-190,-204,-204,-235,-213,-459,-459,-460,-460,-459,-450,-450,-462,-447,-433,-331,-316,-517,-363,-456,-477,-853,-821,-833,-465,-522,-502,-454,-406,-816,-727,-1601,-1552,-5269,-1067,-5181,-5115,-2822,-2356,-1249,-1477,-1031,-725]} 1. d4 {[%emt 0:00:13]} Nf6 {[%emt 0:00:03]} 2. c4 {[%emt 0:00:05]} e6 {[%emt 0:00:02]} 3. Nc3 {[%emt 0:00:06]} d5 {[%emt 0:00:02]} 4. cxd5 {[%emt 0:01:04]} exd5 {[%emt 0:00:04]} 5. Bg5 {[%emt 0:00:06]} c6 {[%emt 0:00:05]} 6. e3 {[%emt 0:00:06]} Bd6 {[%emt 0:00:04]} 7. Bd3 {[%emt 0:02:03]} O-O {[%emt 0:00:07]} 8. Qc2 {[%emt 0:00:36][%cal Od3h7] D35: Queen's Gambit Declined: Exchange Variation.} h6 {[%emt 0:00:03]} 9. Bh4 {[%emt 0:00:06]} Re8 {[%emt 0:00:03]} 10. Nge2 {[%emt 0:02:41] The position is equal.} a5 {[%emt 0:00:24]} 11. h3 {[%emt 0:11:18]} Na6 {[%emt 0:00:14][%cal Bb8a6,Ba6c7,Bc7e6,Be6g5][%mdl 32]} 12. a3 {[%emt 0:00:53] Inhibits Nb4.} Nc7 {[%emt 0:00:09]} 13. O-O {[%emt 0:01:01]} Ne6 {[%emt 0:00:04]} 14. Bg3 {[%emt 0:08:56] 14.f4 is becoming the main line.} Ng5 {[%emt 0:10:05]} 15. Bxd6 {[%emt 0:03:38]} Qxd6 {[%emt 0:00:17]} 16. Bf5 {[%emt 0:02:03]} Bxf5 {[%emt 0:17:55]} 17. Qxf5 {[%emt 0:02:55]} Nge4 {[%emt 0:00:07] [#]} 18. Rfe1 $146 {[%emt 0:07:28]} ({Predecessor:} 18. Rfd1 a4 19. Na2 Re6 20. Rac1 Qe7 21. Nec3 Re8 22. Nxa4 Nd7 23. Rc2 Rf6 24. Qh5 Nxf2 25. Rxf2 Rxf2 26. Kxf2 Qxe3+ 27. Kf1 Re6 {0-1 (27) Neurohr,J (2022)-Andre,G (2373) Magdeburg 2020}) 18... a4 {[%emt 0:03:31]} 19. Nxe4 {[%emt 0:04:46]} Nxe4 {[%emt 0:00:30]} 20. Nc3 {[%emt 0:01:51]} (20. Nf4 $11) 20... Nxc3 $15 {[%emt 0:06:12]} 21. bxc3 {[%emt 0:00:05]} b5 {[%emt 0:04:04]} 22. Qb1 {[%emt 0:00:51]} Re4 {[%emt 0:02:25]} 23. Qb4 {[%emt 0:11:39]} (23. f3 $15 Re6 24. e4) 23... Qe6 $17 {[%emt 0:03:58]} 24. Kh2 {[%emt 0:10:18]} Re8 {[%emt 0:02:11]} 25. Rg1 {[%emt 0:02:18]} Qf5 {[%emt 0:10:12]} 26. Qb2 {[%emt 0:05:07]} h5 {[%emt 0:12:07][%cal Bh6h5,Bh5h4][%mdl 32]} 27. g3 {[%emt 0:00:41]} h4 {[%emt 0:02:25]} 28. g4 {[%emt 0:01:05]} Qf6 {[%emt 0:00:17]} (28... Qf3 {keeps more tension.} 29. Rg2 g5 30. Rgg1 Qf6) 29. Rg2 {[%emt 0:02:21]} Qd6+ {[%emt 0:03:08]} 30. Kh1 {[%emt 0:00:10]} Qd7 {[%emt 0:05:19]} 31. Rag1 {[%emt 0:01:03]} g5 {[%emt 0:01:01]} 32. Qb4 {[%emt 0:02:18]} R8e6 {[%emt 0:00:35]} 33. Qb2 {[%emt 0:00:36]} Rf6 {[%emt 0:01:26]} 34. Rh2 {[%emt 0:00:31]} Kg7 {[%emt 0:02:02]} 35. Ra1 {[%emt 0:00:55]} Qe7 {[%emt 0:01:29]} 36. Qe2 {[%emt 0:03:04]} Rfe6 {[%emt 0:02:33]} 37. Rg2 {[%emt 0:00:34]} Kh6 {[%emt 0:00:36]} 38. Rgg1 {[%emt 0:03:07]} Qf8 {[%emt 0:01:12]} 39. Qf3 {[%emt 0:00:09] [#]} (39. Ra2 $17) 39... f5 $1 $19 {[%emt 0:00:46]} 40. gxf5 {[%emt 0:00:00][%cal Og1g5]} Rf6 {[%emt 0:00:00][%cal Be6f6,Bf6f5,Bf5f3][%mdl 32]} 41. Qg2 {[%emt 0:16:17]} Rxf5 {[%emt 0:01:44] Strongly threatening ...Qf6. Active counter play!} 42. Ra2 $2 {[%emt 0:11:53]} (42. Rae1 {might work better.} Qf6 43. f4) 42... Qf6 {[%emt 0:01:17]} 43. Rb2 {[%emt 0:04:08]} Rf3 {[%emt 0:00:42]} 44. Ra2 {[%emt 0:00:05]} Qf5 {[%emt 0:00:39]} 45. Kh2 {[%emt 0:00:08]} Kh5 {[%emt 0:07:36]} 46. Re2 {[%emt 0:00:51]} g4 {[%emt 0:09:08]} 47. hxg4+ {[%emt 0:00:04]} Rxg4 {[%emt 0:00:03] Chess con chili.} 48. Qxg4+ {[%emt 0:00:05]} Qxg4 {[%emt 0:00:04]} 49. Rxg4 {[%emt 0:00:03]} Kxg4 {[%emt 0:00:04][%mdl 4096] Endgame KR-KR} 50. Kg2 {[%emt 0:08:42]} (50. Kg1 $142 h3 51. Re1) 50... h3+ {[%emt 0:00:17]} 51. Kf1 {[%emt 0:00:02]} Kf5 {[%emt 0:01:33] White must now prevent ...Ke4.} 52. Re1 {[%emt 0:00:03] Hoping for Ke2.} h2 {[%emt 0:11:47]} 53. Kg2 {[%emt 0:00:07]} Ke4 {[%emt 0:00:04]} 54. Rf1 {[%emt 0:05:42]} (54. Rh1 $142 Rf6 55. Rxh2 Rg6+ 56. Kf1) 54... Rf6 {[%emt 0:00:32] aiming for ...Rg6+. Black is clearly winning.} 55. Kxh2 {[%emt 0:00:03]} Kf3 {[%emt 0:01:06] ...Rh6+ is the strong threat.} 56. Kh1 {[%emt 0:00:58]} Rh6+ {[%emt 0:00:58]} 57. Kg1 {[%emt 0:00:02]} Ke2 {[%emt 0:00:35] ( -> ...Rg6+)} 58. Rb1 {[%emt 0:00:44]} Rg6+ {[%emt 0:00:07][%mdl 64] [#] Deflection} 59. Kh2 {[%emt 0:00:43]} Kxf2 {[%emt 0:00:07][%cal Rg6h6]} 60. Kh3 {[%emt 0:00:23]} Rg3+ {[%emt 0:01:10] Weighted Error Value: White=0.53/Black=0.08 (flawless)} 0-1

[Event "Polish Youth Ekstraliga 2022"]
[Site "Lublin"]
[Date "2022.06.27"]
[Round "3.2"]
[White "Ochedzan, Tymon"]
[Black "Meers, Hubert"]
[Result "1-0"]
[ECO "B06"]
[WhiteElo "2261"]
[BlackElo "2013"]
[Annotator "TA"]
[PlyCount "119"]
[EventDate "2022.06.24"]
[EventType "team-tourn"]
[EventCountry "POL"]
[SourceTitle "playchess.com"]
[Source "ChessBase"]
[SourceQuality "1"]
[TimeControl "40/5400+30:1800+30"]

{[%evp 10,119,50,26,31,39,50,47,56,57,69,56,69,68,77,0,35,32,40,24,58,57,63,57,95,106,87,62,109,46,120,79,158,151,150,145,187,189,195,197,198,195,199,193,196,152,229,215,234,235,240,233,220,203,231,251,293,254,381,342,329,279,420,442,431,348,706,706,706,703,1336,790,1193,1203,1203,1120,1085,1206,1312,1068,1328,1360,1091,616,597,524,456,156,1188,1062,1491,1409,1450,1396,1279,1200,1128,996,29963,29964,6750,6532,29971,29972,29976,29977,29976,29977,29978,29979,6843,2195]} 1. e4 {[%emt 0:00:04][%cal Be2e4,Be4e5][%mdl 32]} g6 {[%emt 0:00:08]} 2. d4 {[%emt 0:00:52]} Bg7 {[%emt 0:00:05]} 3. Nc3 {[%emt 0:01:24]} c6 {[%emt 0:00:04]} 4. f4 {[%emt 0:07:50]} d5 {[%emt 0:00:08]} 5. e5 {[%emt 0:01:14]} Nh6 {[%emt 0:02:17]} 6. Be2 {[%emt 0:06:16]} f6 {[%emt 0:01:27] B15: Caro-Kann: 3 Nc3: 3...g6 and 3...dxe4 4 Nxe4 Nf6 5 Nxf6+ exf6.} 7. Be3 {[%emt 0:04:55]} Qb6 {[%emt 0:12:59]} 8. Na4 {[%emt 0:04:33]} Qa5+ {[%emt 0:01:16] White is slightly better.} 9. c3 {[%emt 0:00:55]} O-O {[%emt 0:04:59]} 10. Nf3 {[%emt 0:04:36]} Nd7 {[%emt 0:14:14]} 11. b4 {[%emt 0:08:35]} Qc7 {[%emt 0:00:14][%cal Og6g5] [#]} 12. c4 $146 {[%emt 0:06:33]} (12. O-O $16) ({Predecessor:} 12. O-O b5 13. Nb2 Nb6 14. a4 Nc4 15. Nxc4 bxc4 16. a5 Bg4 17. h3 Bxf3 18. Bxf3 {½-½ (48) Gaponenko,I (2428)-Khotenashvili,B (2452) Khanty-Mansiysk 2017}) 12... Nb6 {[%emt 0:02:23]} 13. Nxb6 {[%emt 0:03:54]} Qxb6 {[%emt 0:00:46]} 14. Qb3 {[%emt 0:02:46]} Be6 {[%emt 0:00:54]} 15. c5 {[%emt 0:04:42]} Qc7 {[%emt 0:00:48]} 16. O-O {[%emt 0:02:52]} a6 {[%emt 0:03:04]} 17. h3 {[%emt 0:01:26]} Qd7 {[%emt 0:08:54]} 18. a4 {[%emt 0:01:26]} Nf7 {[%emt 0:01:32]} (18... Nf5 $14) 19. b5 {[%emt 0:03:46]} (19. Rf2 $16) 19... Rfb8 {[%emt 0:02:18]} (19... axb5 $14 20. axb5 g5) 20. Rfb1 {[%emt 0:04:54]} Qc8 {[%emt 0:06:42]} (20... axb5 $142 21. axb5 Qd8) 21. bxa6 {[%emt 0:03:27]} bxa6 {[%emt 0:00:06]} 22. Qc3 {[%emt 0:00:20] White is more active.} Bf5 {[%emt 0:08:21]} 23. Rb6 {[%emt 0:02:36]} Rxb6 {[%emt 0:07:40]} 24. cxb6 {[%emt 0:00:06]} a5 {[%emt 0:00:07]} 25. g4 {[%emt 0:01:54][%cal Bg2g4,Bg4g5][%mdl 32]} Bd7 {[%emt 0:01:42]} 26. Rb1 {[%emt 0:02:13]} Nd8 {[%emt 0:01:27]} 27. Ne1 {[%emt 0:01:22]} f5 {[%emt 0:02:31]} (27... c5 $16) 28. g5 {[%emt 0:01:38]} e6 {[%emt 0:00:57]} 29. Nd3 {[%emt 0:00:27]} Bf8 {[%emt 0:00:05]} 30. Bc1 {[%emt 0:04:14]} Nb7 {[%emt 0:08:28]} 31. Ba3 {[%emt 0:01:03] Inhibits c5.} Bxa3 {[%emt 0:01:02]} 32. Qxa3 {[%emt 0:00:08]} Qe8 {[%emt 0:02:21]} 33. Qc3 {[%emt 0:02:26]} Kg7 {[%emt 0:04:07]} (33... Qe7 $142 34. h4 Be8) 34. Kf2 {[%emt 0:01:40]} Qe7 {[%emt 0:00:33]} 35. h4 {[%emt 0:02:59][%cal Bh3h4,Bh4h5][%mdl 32]} Qd8 {[%emt 0:01:59]} (35... Be8 $142 36. Ke3 Kf8) 36. h5 $18 {[%emt 0:01:41]} Qe7 {[%emt 0:00:08]} 37. Rh1 {[%emt 0:03:25] [#] Black must now prevent hxg6.} Qd8 $2 {[%emt 0:01:20]} (37... Kg8 38. hxg6 hxg6) 38. hxg6 {[%emt 0:01:11]} hxg6 {[%emt 0:00:07]} 39. Nc5 {[%emt 0:00:53]} Bc8 {[%emt 0:00:41]} 40. Qh3 {[%emt 0:00:00]} Qg8 {[%emt 0:00:00] Against Qh7+} 41. Qh6+ {[%emt 0:06:06]} Kf7 {[%emt 0:00:30]} 42. Qh8 {[%emt 0:04:41]} Qxh8 {[%emt 0:03:32]} 43. Rxh8 {[%emt 0:00:06] Strongly threatening Nxb7.} Kg7 {[%emt 0:03:17] [#]} 44. Rxc8 $1 {[%emt 0:02:39][%mdl 512]} Rxc8 {[%emt 0:00:29]} 45. Nxb7 {[%emt 0:00:33]} Rb8 {[%emt 0:00:38]} 46. Nxa5 {[%emt 0:00:16] Intending b7 and mate.} Rxb6 {[%emt 0:00:09]} 47. Ke3 {[%emt 0:01:14]} Kf7 {[%emt 0:01:32]} 48. Kd2 $2 {[%emt 0:01:35]} (48. Bd1 $18 {and White stays clearly on top.}) 48... Ke7 $2 {[%emt 0:01:04] Loses the game.} (48... Rb4 $16) 49. Kc3 {[%emt 0:00:45]} Kd8 {[%emt 0:01:52]} 50. Nb3 {[%emt 0:00:19]} Rb7 {[%emt 0:00:06]} 51. a5 {[%emt 0:01:00]} Re7 52. Nc5 {[%emt 0:00:51]} Kc7 {[%emt 0:02:37]} 53. Kb4 {[%emt 0:00:10]} Re8 {[%emt 0:03:25]} 54. Na6+ {[%emt 0:00:34]} Kb7 {[%emt 0:00:22]} 55. Kc5 {[%emt 0:01:14] Kd6 would kill now.} Rh8 {[%emt 0:01:02]} 56. Kd6 {[%emt 0:00:54]} Rh2 {[%emt 0:00:31]} 57. Bd3 {[%emt 0:00:57]} Ra2 {[%emt 0:00:21]} 58. Nc5+ {[%emt 0:00:09]} Ka7 {[%emt 0:00:05]} 59. Kxe6 {[%emt 0:00:40]} Rxa5 {[%emt 0:00:05]} 60. Kf6 {[%emt 0:00:57] Weighted Error Value: White=0.30/Black=0.53} (60. Kf7 $142 Kb6 61. Kxg6) 1-0

[Event "Polish Youth Ekstraliga 2022"]
[Site "Lublin"]
[Date "2022.06.27"]
[Round "3.3"]
[White "Zielonka, Adam"]
[Black "Jaworski, Tymon"]
[Result "1-0"]
[ECO "C92"]
[WhiteElo "1988"]
[BlackElo "1628"]
[Annotator "RC"]
[PlyCount "61"]
[EventDate "2022.06.24"]
[EventType "team-tourn"]
[EventCountry "POL"]
[SourceTitle "playchess.com"]
[Source "ChessBase"]
[SourceQuality "1"]
[TimeControl "40/5400+30:1800+30"]

1. e4 {[%emt 0:00:01]} e5 {[%emt 0:00:05]} 2. Nf3 {[%emt 0:00:18]} Nc6 {[%emt 0:00:03]} 3. Bb5 {[%emt 0:00:07]} a6 {[%emt 0:00:13]} 4. Ba4 {[%emt 0:00:06]} Nf6 {[%emt 0:00:14]} 5. O-O {[%emt 0:00:08]} Be7 {[%emt 0:00:28]} 6. Re1 {[%emt 0:00:46]} b5 {[%emt 0:00:27]} 7. Bb3 {[%emt 0:00:03]} d6 {[%emt 0:00:20]} 8. c3 {[%emt 0:00:41]} O-O {[%emt 0:00:18]} 9. h3 {[%emt 0:00:04]} Bb7 {[%emt 0:00:44]} 10. d4 {[%emt 0:00:06]} Re8 {[%emt 0:01:53]} 11. Nbd2 {[%emt 0:00:06]} Bf8 {[%emt 0:00:09]} 12. a3 {[%emt 0:00:13]} h6 {[%emt 0:01:34]} 13. Bc2 {[%emt 0:00:19]} d5 {[%emt 0:06:02]} 14. dxe5 {[%emt 0:04:21]} Nxe5 {[%emt 0:00:33]} 15. Nxe5 {[%emt 0:00:12]} Rxe5 {[%emt 0:00:57]} 16. f4 {[%emt 0:01:33]} Bc5+ {[%emt 0:03:03]} 17. Kh1 {[%emt 0:00:41]} Re8 {[%emt 0:02:37]} 18. e5 {[%emt 0:00:12]} Nd7 {[%emt 0:08:45]} 19. Nf3 {[%emt 0:01:34]} Nf8 {[%emt 0:02:08]} 20. f5 {[%emt 0:05:05]} d4 {[%emt 0:11:50]} 21. cxd4 {[%emt 0:30:32]} Bxf3 {[%emt 0:02:57]} 22. Qxf3 {[%emt 0:00:07]} Qxd4 {[%emt 0:00:26]} 23. Bf4 {[%emt 0:00:48]} Qf2 {[%emt 0:14:39]} 24. Be4 {[%emt 0:01:19]} Rab8 {[%emt 0:02:09]} 25. Rac1 {[%emt 0:07:22]} Qxf3 {[%emt 0:06:56]} 26. Bxf3 {[%emt 0:00:19]} Bb6 {[%emt 0:00:11]} 27. b4 {[%emt 0:03:11]} g6 {[%emt 0:05:37]} 28. g4 {[%emt 0:01:19]} Kg7 {[%emt 0:07:21]} 29. Bc6 {[%emt 0:03:01]} Red8 {[%emt 0:02:10]} 30. e6 {[%emt 0:00:17]} fxe6 {[%emt 0:00:35]} 31. fxe6 {[%emt 0:00:05]} 1-0

[Event "Polish Youth Ekstraliga 2022"]
[Site "Lublin"]
[Date "2022.06.27"]
[Round "3.4"]
[White "Ochedzan, Filip"]
[Black "Liskiewicz, Jakub"]
[Result "0-1"]
[ECO "B02"]
[WhiteElo "1873"]
[BlackElo "1839"]
[Annotator "NA RC"]
[PlyCount "128"]
[EventDate "2022.06.24"]
[EventType "team-tourn"]
[EventCountry "POL"]
[SourceTitle "playchess.com"]
[Source "ChessBase"]
[SourceQuality "1"]
[TimeControl "40/5400+30:1800+30"]

{[%evp 8,125,34,32767,32767,32767,32767,25,23,2,22,32767,32767,32767,-28,-59,-41,-75,-76,-77,-57,32767,-45,-76,-58,-81,32767,-75,-58,32767,-48,-52,-47,32767,27,32767,99,0,8,0,2,0,32767,32767,0,32767,0,-45,-18,-132,32767,-106,32767,32767,32767,32767,32767,32767,-18,-11,0,-29,-31,32767,32767,32767,94,0,169,49,573,543,32767,32767,32767,1166,903,83,69,43,41,0,32767,8,16,4,3,32767,32767,-18,-19,32767,32767,32767,32767,32767,-633,32767,32767,-29974,32767,-29986,-29988,-29986,-749,-29987,-29988,-29988,-29990,-29990,32767,32767,32767,32767,32767,32767,32767,32767,32767,-29990]} 1. e4 {[%emt 0:00:03]} Nf6 {[%emt 0:00:06]} 2. e5 {[%emt 0:00:10]} Nd5 {[%emt 0:00:06]} 3. Nc3 {[%emt 0:00:19]} Nxc3 {[%emt 0:00:10]} 4. dxc3 {[%emt 0:00:08]} g6 {[%emt 0:00:06]} 5. Bf4 {[%emt 0:05:42]} Bg7 {[%emt 0:00:23]} 6. Nf3 {[%emt 0:01:09]} d6 {[%emt 0:00:29]} 7. h3 {[%emt 0:03:17]} O-O {[%emt 0:01:26]} 8. Bc4 {[%emt 0:05:56]} Nc6 {[%emt 0:01:50]} 9. exd6 {[%emt 0:03:28]} cxd6 {[%emt 0:00:16]} 10. O-O {[%emt 0:01:32]} Na5 {[%emt 0:06:20]} 11. Be2 {[%emt 0:11:31]} (11. Bd5 $11) 11... e5 {[%emt 0:03:14]} 12. Bg5 {[%emt 0:02:19]} Qc7 {[%emt 0:01:27]} 13. Qd2 {[%emt 0:10:36]} Be6 {[%emt 0:03:50]} 14. Bh6 {[%emt 0:02:51]} Rfe8 {[%emt 0:03:43]} 15. Bxg7 {[%emt 0:02:11]} Kxg7 {[%emt 0:00:08]} 16. Rfe1 {[%emt 0:02:56]} Rad8 {[%emt 0:02:27]} 17. b3 {[%emt 0:07:33]} d5 {[%emt 0:06:52]} 18. Bb5 {[%emt 0:03:49]} Bd7 {[%emt 0:02:05]} 19. Bxd7 {[%emt 0:01:08]} ({Avoid the trap} 19. Qxd5 $2 Bf5 20. Bxe8 Rxd5 $19) 19... Rxd7 {[%emt 0:00:07]} 20. Rad1 {[%emt 0:01:52]} e4 {[%emt 0:05:13]} (20... Nc6 $15) 21. Nd4 {[%emt 0:07:45]} Rc8 {[%emt 0:04:13] [#]} (21... Nc6 $11 {keeps the balance.}) 22. Re3 {[%emt 0:01:20]} (22. c4 $1 $16) 22... Nc6 {[%emt 0:03:03]} 23. c4 {[%emt 0:07:37]} Rcd8 {[%emt 0:03:56]} 24. Nxc6 {[%emt 0:01:43]} Qxc6 {[%emt 0:00:58]} 25. Qd4+ {[%emt 0:00:16]} Kg8 {[%emt 0:00:24]} 26. c5 {[%emt 0:01:03]} f5 {[%emt 0:06:34]} 27. f4 {[%emt 0:04:00]} (27. b4 $11 {deserves consideration.}) 27... Kf7 {[%emt 0:07:24]} 28. Kh1 {[%emt 0:01:48]} (28. b4 $11 {remains equal.}) 28... Qf6 {[%emt 0:02:31]} 29. c3 {[%emt 0:00:57]} Qh4 {[%emt 0:04:12]} 30. Rf1 {[%emt 0:00:54]} h6 {[%emt 0:00:22]} 31. Kh2 {[%emt 0:03:10]} Qf6 {[%emt 0:01:17]} 32. g4 {[%emt 0:02:19]} Ke6 {[%emt 0:04:36]} 33. gxf5+ {[%emt 0:00:48]} Qxf5 {[%emt 0:01:33]} 34. Kg2 {[%emt 0:02:57]} Qf6 {[%emt 0:05:51]} 35. Rg3 {[%emt 0:00:42]} Rf8 {[%emt 0:03:04]} 36. Qe3 {[%emt 0:01:21]} Kf5 {[%emt 0:01:32] [#]} (36... Qf5 $11) 37. Kh2 {[%emt 0:01:16]} (37. Rg5+ $1 $16 Ke6 38. Re5+ Kf7 39. Qd4) 37... Qa6 $2 {[%emt 0:02:48] [#]} (37... Ke6 $11 {and Black has nothing to worry.}) 38. Rfg1 $2 {[%emt 0:00:20]} (38. Qd4 $1 $18 {[%csl Gf4][%cal Rd4e5]} g5 (38... Re8 39. Rfg1) 39. Rf2 (39. c6 Qxf1 40. cxd7 Kg6 $11) 39... gxf4 40. Rg4 (40. Qd1 Rf6 $14)) 38... Qxa2+ $2 {[%emt 0:01:06]} (38... Rg8 $1 $14) 39. R1g2 {[%emt 0:00:38]} Qa6 {[%emt 0:01:12]} 40. Qd4 {[%emt 0:00:00]} Re8 {[%emt 0:00:00]} 41. Qd1 {[%emt 0:11:05]} Rg7 {[%emt 0:20:28]} 42. Qxd5+ $2 {[%emt 0:02:45]} (42. Rd2 $18 {is the precise move to win.} Kf6 43. Rxd5 (43. Qg4 Qe6 $11)) 42... Kf6 {[%emt 0:00:09]} 43. f5 {[%emt 0:02:33]} g5 {[%emt 0:02:31]} 44. Rf2 {[%emt 0:02:55]} Rge7 {[%emt 0:02:04]} 45. Qd4+ {[%emt 0:03:52]} Re5 $1 {[%emt 0:00:27]} 46. h4 {[%emt 0:02:44]} Qc6 {[%emt 0:01:25]} 47. hxg5+ {[%emt 0:05:37]} hxg5 {[%emt 0:00:09]} 48. Rh3 {[%emt 0:02:01]} Qxc5 {[%emt 0:02:35]} 49. Rh6+ {[%emt 0:00:33]} Kg7 {[%emt 0:00:30]} 50. Rg6+ {[%emt 0:00:45]} Kf7 {[%emt 0:00:06]} 51. Qd7+ {[%emt 0:01:14]} R8e7 {[%emt 0:00:21]} 52. Rg7+ {[%emt 0:00:31]} Kxg7 {[%emt 0:00:44]} 53. f6+ {[%emt 0:00:21]} Kg6 {[%emt 0:00:26]} 54. fxe7 {[%emt 0:00:38]} Qxf2+ {[%emt 0:00:08]} 55. Kh1 {[%emt 0:00:11]} Qf1+ {[%emt 0:01:21]} (55... Qf7 $142 56. Kg2 Rxe7 57. Qd6+ Qe6 58. Qxe6+ Rxe6 59. Kf2 e3+ 60. Ke2 g4 61. b4 g3 62. b5 g2 63. Kd3 e2 64. Kd4 g1=Q+ 65. Kc4 e1=Q 66. Kb4 Qb1+ 67. Kc4 Re5 68. b6 Qg4#) 56. Kh2 {[%emt 0:00:02]} Qf7 {[%emt 0:00:22]} 57. Qd6+ {[%emt 0:00:37]} Re6 {[%emt 0:00:39]} 58. e8=Q {[%emt 0:00:43]} Qxe8 {[%emt 0:00:10]} 59. Qd5 {[%emt 0:00:13]} Qh8+ {[%emt 0:00:28]} 60. Kg2 {[%emt 0:00:08]} Qe5 {[%emt 0:00:11]} 61. Qxb7 {[%emt 0:00:28]} e3 {[%emt 0:01:03]} 62. Qa8 {[%emt 0:00:23]} Qe4+ {[%emt 0:00:08]} 63. Qxe4+ {[%emt 0:00:11]} Rxe4 {[%emt 0:00:15]} 64. Kg1 Kf5 0-1

[Event "Polish Youth Ekstraliga 2022"]
[Site "Lublin"]
[Date "2022.06.27"]
[Round "3.5"]
[White "Zabrzanska, Weronika"]
[Black "Lochina, Justyna"]
[Result "1-0"]
[ECO "B22"]
[WhiteElo "1882"]
[BlackElo "1672"]
[Annotator "NA RC"]
[PlyCount "43"]
[EventDate "2022.06.24"]
[EventType "team-tourn"]
[EventCountry "POL"]
[SourceTitle "playchess.com"]
[Source "ChessBase"]
[SourceQuality "1"]
[TimeControl "40/5400+30:1800+30"]

{[%evp 12,42,28,15,73,73,32767,83,97,32767,32767,90,93,91,32767,32767,124,32767,32767,32767,32767,108,113,32767,32767,548,32767,325,312,32767,29997,32767,29998]} 1. e4 {[%emt 0:00:02]} c5 {[%emt 0:00:07]} 2. c3 {[%emt 0:00:20]} d5 {[%emt 0:00:15]} 3. exd5 {[%emt 0:00:40]} Qxd5 {[%emt 0:00:20]} 4. d4 {[%emt 0:00:04]} g6 {[%emt 0:00:40]} 5. Nf3 {[%emt 0:00:48]} Bg7 {[%emt 0:01:33]} 6. Be2 {[%emt 0:03:19]} cxd4 {[%emt 0:13:59]} 7. cxd4 {[%emt 0:01:38]} Nc6 {[%emt 0:07:28]} (7... Nf6 $11) 8. Nc3 {[%emt 0:01:19]} Qa5 {[%emt 0:01:56]} 9. d5 {[%emt 0:05:02]} Nb4 {[%emt 0:25:17]} 10. Bb5+ {[%emt 0:04:31]} Kf8 {[%emt 0:10:29]} 11. a3 {[%emt 0:34:08]} Bf5 {[%emt 0:20:20] [#]} 12. axb4 $1 {[%emt 0:11:07]} Qxa1 {[%emt 0:01:45]} 13. O-O {[%emt 0:03:19]} a6 {[%emt 0:04:42]} 14. Bc4 {[%emt 0:10:57]} a5 {[%emt 0:02:23]} 15. b5 {[%emt 0:02:03]} a4 {[%emt 0:00:30] [#]} 16. Ba2 $2 {[%emt 0:04:25]} (16. d6 $1 $18 {and the rest is easy.} a3 17. d7) 16... a3 {[%emt 0:00:34]} 17. Qb3 {[%emt 0:00:35]} Bd3 {[%emt 0:01:44] [#]} 18. d6 $1 {[%emt 0:02:44]} e6 {[%emt 0:01:06]} 19. Rd1 {[%emt 0:00:59]} Be2 {[%emt 0:03:16]} 20. d7 {[%emt 0:01:50]} Bxd1 {[%emt 0:00:28]} (20... Bxc3 $18 21. Bh6+ Nxh6 22. Rxa1 axb2) 21. Qxa3+ {[%emt 0:00:11]} Ne7 {[%emt 0:01:03]} 22. Qxa8+ {[%emt 0:00:14]} 1-0